bitfinex-derivatives/quotes_BNBF0:USTF0_20250305
["timestamp","ask_amount","ask_price","bid_price","bid_amount"]
[1741209757971,2.04594654,595.64,594.63,0.29238415]
[1741209758171,1.082,595.64,594.63,0.29238415]
[1741209759369,0.29241363,595.63,594.63,0.29238415]
[1741209759967,1.082,595.64,594.44,1.25844178]
[1741209760173,1.082,595.64,594.63,0.29241363]
[1741209760373,1.082,595.64,594.44,1.25844178]
[1741209760570,1.21939075,595.63,594.44,1.25844178]
[1741209760769,2.76170522,595.63,594.56,1.25844178]
[1741209760973,4.22963113,595.63,594.56,1.25844178]
[1741209761171,3.46282344,595.62,594.57,0.29240749]
[1741209761372,3.01024038,595.61,594.57,0.29240749]
[1741209761875,3.17041595,595.6,594.57,0.29240749]
[1741209762175,5.67667696,595.6,594.57,0.29240749]
[1741209762376,4.22963113,595.59,594.57,0.29240749]
[1741209762570,3.72565176,595.59,594.57,0.29240749]
[1741209762772,0.96394654,595.58,594.57,0.29240749]
[1741209762970,3.17041595,595.58,594.5,1.25844178]
[1741209763171,2.50626101,595.57,594.5,1.25844178]
[1741209763577,1.21939075,595.56,594.5,1.25844178]
[1741209764273,1.21939075,595.56,594.51,0.29242346]
[1741209764677,0.29242346,595.58,594.51,0.29242346]
[1741209765879,3.17041595,595.59,594.5,1.25844178]
[1741209766080,6.18067637,595.59,594.5,1.25844178]
[1741209766379,6.18067637,595.58,594.5,1.25844178]
[1741209766579,2.50626101,595.57,594.5,1.25844178]
[1741209766974,1.21939075,595.56,594.5,1.25844178]
[1741209767178,1.21939075,595.56,594.51,0.29242223]
[1741209768180,0.29242223,595.58,594.51,0.29242223]
[1741209768382,0.29242223,595.58,594.52,1.25844178]
[1741209768778,3.01026535,595.59,594.52,1.25844178]
[1741209768989,3.72565176,595.59,594.52,1.25844178]
[1741209769185,0.29241609,595.58,594.52,1.25844178]
[1741209769591,3.46283204,595.58,594.52,1.25844178]
[1741209769792,3.01252597,595.57,594.52,1.25844178]
[1741209770392,3.17041595,595.56,594.55,1.25844178]
[1741209770691,5.6789368,595.56,594.55,1.25844178]
[1741209771586,3.17041595,595.56,594.55,1.25844178]
[1741209771789,2.50902634,595.55,594.55,1.25844178]
[1741209772293,2.80145349,595.55,594.55,1.25844178]
[1741209772994,2.80145349,595.55,594.53,0.29242715]
[1741209773194,0.29242715,595.55,594.53,0.29242715]
[1741209774392,2.80252761,595.55,594.53,0.29242715]
[1741209774589,0.96542325,595.54,594.53,0.29242715]
[1741209774895,2.51010046,595.55,594.52,1.25844178]
[1741209775393,1.21939075,595.54,594.53,0.29242346]
[1741209775595,3.72949121,595.54,594.53,0.29242346]
[1741209775795,2.51010046,595.53,594.53,0.29242346]
[1741209775992,2.184814,595.53,594.53,0.29242346]
[1741209776195,0.96542325,595.52,594.53,0.29242346]
[1741209776696,0.96542325,595.55,594.53,0.29242346]
[1741209777394,1.21939075,595.56,594.53,0.29242346]
[1741209777594,2.184814,595.56,594.55,0.33638886]
[1741209777798,0.96542325,595.55,594.55,0.33638886]
[1741209777994,1.21939075,595.56,594.55,0.33638886]
[1741209778597,0.96542325,595.58,594.55,0.33638886]
[1741209778798,2.184814,595.6,594.55,0.33638886]
[1741209779000,0.96542325,595.59,594.55,0.33638886]
[1741209779200,2.184814,595.63,594.55,0.33638886]
[1741209779399,0.96542325,595.62,594.55,0.33638886]
[1741209779803,3.73047867,595.62,594.61,1.25844178]
[1741209780004,2.51108792,595.61,594.63,0.3363436]
[1741209780204,0.96542325,595.61,594.63,0.3363436]
[1741209780404,1.21939075,595.6,594.63,0.3363436]
[1741209780600,2.03339075,595.6,594.63,0.3363436]
[1741209780997,0.814,595.6,594.63,0.3363436]
[1741209782104,1.21939075,595.59,594.64,1.25844178]
[1741209782504,3.73047867,595.59,594.64,1.25844178]
[1741209782704,5.68150387,595.59,594.64,1.25844178]
[1741209782906,2.51108792,595.58,594.65,0.33633229]
[1741209783406,1.21939075,595.57,594.65,0.33633229]
[1741209785107,2.184814,595.57,594.65,0.33633229]
[1741209785310,1.54677496,595.58,594.65,0.33633229]
[1741209785311,0.96542325,595.56,594.65,0.33633229]
[1741209785509,0.814,595.6,594.65,0.33633229]
[1741209789704,0.814,595.6,594.68,1.25844178]
[1741209789906,3.3275593,595.6,594.69,0.33630967]
[1741209790106,3.17041595,595.59,594.69,0.33630967]
[1741209790312,2.5135593,595.58,594.69,0.33630967]
[1741209790807,1.21939075,595.57,594.69,0.33630967]
[1741209792315,1.21939075,595.57,594.7,1.25844178]
[1741209792617,1.21939075,595.56,594.71,0.33629836]
[1741209792910,0.96675358,595.55,594.71,0.33629836]
[1741209793115,2.18614433,595.54,594.71,0.33629836]
[1741209793310,0.96675358,595.53,594.71,0.33629836]
[1741209793618,0.96675358,595.52,594.71,0.33629836]
[1741209793914,0.96675358,595.51,594.71,0.33629836]
[1741209794121,0.96675358,595.5,594.71,0.33629836]
[1741209794315,0.96675358,595.49,594.71,0.33629836]
[1741209794515,0.96675358,595.48,594.71,0.33629836]
[1741209794717,1.21939075,595.51,594.71,0.33629836]
[1741209794718,0.96675358,595.5,594.71,0.33629836]
[1741209794921,1.21939075,595.47,594.71,0.33629836]
[1741209795615,1.21939075,595.46,594.71,0.33629836]
[1741209796417,0.96817095,595.47,594.71,0.33629836]
[1741209796722,3.73663522,595.56,594.71,0.33629836]
[1741209796923,0.96817095,595.55,594.71,0.33629836]
[1741209797125,2.1875617,595.54,594.71,0.33629836]
[1741209797322,0.96817095,595.53,594.71,0.33629836]
[1741209797522,0.96817095,595.52,594.71,0.33629836]
[1741209797719,0.96817095,595.51,594.71,0.33629836]
[1741209798125,1.21939075,595.52,594.71,0.33629836]
[1741209798525,0.96817095,595.51,594.71,0.33629836]
[1741209798725,1.22433875,595.51,594.71,0.33629836]
[1741209799827,1.22433875,595.5,594.71,0.33629836]
[1741209800228,2.19259562,595.5,594.71,0.33629836]
[1741209800426,0.96825687,595.49,594.71,0.33629836]
[1741209800623,1.22433875,595.49,594.71,0.33629836]
[1741209801221,0.96825687,595.49,594.71,0.33629836]
[1741209801528,0.96825687,595.55,594.71,0.33629836]
[1741209801727,1.22433875,595.56,594.71,0.33629836]
[1741209801928,1.22433875,595.54,594.71,0.33629836]
[1741209802422,1.22433875,595.53,594.71,0.33629836]
[1741209802826,2.19285855,595.54,594.71,0.33629836]
[1741209803029,0.9685198,595.53,594.71,0.33629836]
[1741209803324,1.22433875,595.54,594.71,0.33629836]
[1741209803922,1.22433875,595.53,594.71,0.33629836]
[1741209804126,2.19285855,595.53,594.71,0.33629836]
[1741209804429,1.22433875,595.53,594.71,0.33629836]
[1741209805224,1.22433875,595.57,594.71,0.33629836]
[1741209805427,0.96887006,595.57,594.71,0.33629836]
[1741209805622,0.96887006,595.56,594.71,0.33629836]
[1741209805827,0.96887006,595.55,594.71,0.33629836]
[1741209806025,0.96887006,595.54,594.71,0.33629836]
[1741209806226,2.19320881,595.53,594.75,1.25844178]
[1741209806430,0.96887006,595.52,594.76,0.33627009]
[1741209807025,1.22433875,595.51,594.76,0.33627009]
[1741209807224,2.19320881,595.51,594.76,0.33627009]
[1741209807430,0.96887006,595.5,594.76,0.33627009]
[1741209807629,1.22433875,595.5,594.76,0.33627009]
[1741209808226,1.22433875,595.49,594.76,0.33627009]
[1741209809128,1.22433875,595.48,594.76,0.33627009]
[1741209809433,1.22433875,595.47,594.76,0.33627009]
[1741209809829,2.19320881,595.47,594.76,0.33627009]
[1741209810034,0.96887006,595.46,594.76,0.33627009]
[1741209810236,1.22433875,595.47,594.76,0.33627009]
[1741209810436,1.22433875,595.45,594.76,0.33627009]
[1741209811335,0.96887006,595.52,594.76,0.33627009]
[1741209811534,0.96887006,595.53,594.76,0.33627009]
[1741209811931,1.22433875,595.52,594.76,0.33627009]
[1741209812737,1.22433875,595.51,594.76,0.33627009]
[1741209813541,1.22433875,595.5,594.76,0.33627009]
[1741209813931,1.22433875,595.49,594.76,0.33627009]
[1741209814337,1.22433875,595.48,594.76,0.33627009]
[1741209814738,1.22433875,595.47,594.76,0.33627009]
[1741209815341,1.22433875,595.46,594.76,0.33627009]
[1741209815639,2.19320881,595.46,594.76,0.33627009]
[1741209815839,2.19320881,595.45,594.76,0.33627009]
[1741209816036,0.96887006,595.44,594.76,0.33627009]
[1741209816838,2.51867434,595.52,594.76,0.33627009]
[1741209817141,0.96887006,595.51,594.76,0.33627009]
[1741209817640,1.22433875,595.5,594.76,0.33627009]
[1741209818233,1.54980428,595.57,594.76,0.33627009]
[1741209818234,1.22433875,595.49,594.76,0.33627009]
[1741209818635,1.22433875,595.48,594.76,0.33627009]
[1741209819142,2.19320881,595.51,594.76,0.33627009]
[1741209819339,0.96939011,595.5,594.76,0.33627009]
[1741209819939,0.96939011,595.49,594.76,0.33627009]
[1741209820241,1.22433875,595.49,594.76,0.33627009]
[1741209820443,2.19372886,595.49,594.76,0.33627009]
[1741209820638,0.96939011,595.48,594.76,0.33627009]
[1741209820844,0.96939011,595.47,594.76,0.33627009]
[1741209821040,0.96939011,595.46,594.76,0.33627009]
[1741209821242,1.22433875,595.45,594.76,0.33627009]
[1741209821843,1.22433875,595.44,594.76,0.33627009]
[1741209822345,1.22433875,595.43,594.76,0.33627009]
[1741209823347,1.22433875,595.42,594.76,0.33627009]
[1741209823946,1.22433875,595.41,594.76,0.33627009]
[1741209824246,2.19372886,595.41,594.76,0.33627009]
[1741209824547,0.96939011,595.4,594.76,0.33627009]
[1741209824746,2.52041428,595.45,594.76,0.33627009]
[1741209824943,1.22433875,595.44,594.76,0.33627009]
[1741209825144,2.19372886,595.44,594.76,0.33627009]
[1741209825346,2.19372886,595.43,594.76,0.33627009]
[1741209825649,0.96939011,595.42,594.76,0.33627009]
[1741209825945,1.22433875,595.41,594.76,0.33627009]
[1741209826449,1.22433875,595.4,594.76,0.33627009]
[1741209826748,2.19372886,595.39,594.76,0.33627009]
[1741209827049,2.19372886,595.38,594.76,0.33627009]
[1741209827249,0.96937261,595.37,594.76,0.33627009]
[1741209827449,1.22433875,595.38,594.76,0.33627009]
[1741209827748,2.19371136,595.46,594.76,0.33627009]
[1741209827945,0.96937261,595.45,594.76,0.33627009]
[1741209828146,0.96937261,595.44,594.76,0.33627009]
[1741209828348,0.96937261,595.43,594.76,0.33627009]
[1741209828649,0.96937261,595.42,594.76,0.33627009]
[1741209828849,0.96937261,595.41,594.76,0.33627009]
[1741209829150,0.96937261,595.4,594.76,0.33627009]
[1741209829350,0.96937261,595.42,594.76,0.33627009]
[1741209829549,2.19371136,595.41,594.76,0.33627009]
[1741209829745,0.96937261,595.4,594.76,0.33627009]
[1741209829942,0.96937261,595.39,594.76,0.33627009]
[1741209830144,0.96937261,595.38,594.76,0.33627009]
[1741209830348,0.96937261,595.39,594.76,0.33627009]
[1741209830548,1.22433875,595.38,594.76,0.33627009]
[1741209831347,1.22433875,595.37,594.76,0.33627009]
[1741209831849,2.19371136,595.36,594.76,0.33627009]
[1741209832052,0.96937261,595.35,594.76,0.33627009]
[1741209832243,1.22433875,595.34,594.76,0.33627009]
[1741209832447,2.19371136,595.34,594.76,0.33627009]
[1741209832647,0.96937261,595.33,594.76,0.33627009]
[1741209833050,1.22433875,595.33,594.76,0.33627009]
[1741209833652,2.19371136,595.37,594.76,0.33627009]
[1741209834251,2.19371136,595.36,594.76,0.33627009]
[1741209834452,0.29247507,595.42,594.76,0.33627009]
[1741209834453,2.19371136,595.35,594.76,0.33627009]
[1741209834653,0.96937261,595.34,594.76,0.33627009]
[1741209834947,0.29247507,595.42,594.76,0.33627009]
[1741209835148,0.33548603,596.15,594.76,0.33627009]
[1741209835355,1.00151242,595.52,594.76,0.33627009]
[1741209836456,1.2940979,595.51,594.76,0.33627009]
[1741209836654,2.51684077,595.5,594.76,0.33627009]
[1741209836854,2.51683476,595.49,594.76,0.33627009]
[1741209837156,0.96801337,595.48,594.76,0.33627009]
[1741209837355,0.96801337,595.47,594.76,0.33627009]
[1741209837556,0.96801337,595.46,594.76,0.33627009]
[1741209837757,0.96801337,595.45,594.76,0.33627009]
[1741209838055,0.96801337,595.44,594.76,0.33627009]
[1741209838258,0.96801337,595.43,594.76,0.33627009]
[1741209838455,0.96801337,595.42,594.76,0.33627009]
[1741209838655,0.96801337,595.41,594.76,0.33627009]
[1741209838957,2.19226444,595.4,594.76,0.33627009]
[1741209839257,2.19226444,595.39,594.76,0.33627009]
[1741209839453,0.96801337,595.38,594.76,0.33627009]
[1741209839958,1.22425107,595.37,594.76,0.33627009]
[1741209840154,2.19226444,595.37,594.76,0.33627009]
[1741209840357,2.19226444,595.36,594.76,0.33627009]
[1741209840556,0.96801337,595.35,594.76,0.33627009]
[1741209840755,1.22425107,595.36,594.76,0.33627009]
[1741209840957,0.96801337,595.4,594.76,0.33627009]
[1741209841356,3.02094811,595.4,594.76,0.33627009]
[1741209841554,1.22425107,595.39,594.76,0.33627009]
[1741209841754,4.24519918,595.39,594.76,0.33627009]
[1741209841955,3.18305279,595.38,594.76,0.33627009]
[1741209842159,2.51683476,595.37,594.76,0.33627009]
[1741209842559,1.22425107,595.36,594.76,0.33627009]
[1741209842756,3.74108583,595.36,594.76,0.33627009]
[1741209842960,2.51683476,595.35,594.76,0.33627009]
[1741209843260,0.96801337,595.35,594.76,0.33627009]
[1741209843555,1.22425107,595.38,594.76,0.33627009]
[1741209844155,2.19226444,595.46,594.76,0.33627009]
[1741209844360,0.96801337,595.45,594.76,0.33627009]
[1741209844558,0.96801337,595.44,594.76,0.33627009]
[1741209844859,1.22425107,595.43,594.76,0.33627009]
[1741209845259,1.22425107,595.42,594.76,0.33627009]
[1741209845757,1.22425107,595.41,594.76,0.33627009]
[1741209846257,1.22425107,595.4,594.76,0.33627009]
[1741209846664,1.22425107,595.39,594.76,0.33627009]
[1741209846861,2.19226444,595.39,594.76,0.33627009]
[1741209847061,0.96801337,595.38,594.76,0.33627009]
[1741209847261,2.19226444,595.38,594.76,0.33627009]
[1741209847457,0.96801337,595.37,594.76,0.33627009]
[1741209847660,1.22425107,595.38,594.76,0.33627009]
[1741209847856,1.22425107,595.36,594.76,0.33627009]
[1741209848261,1.22425107,595.35,594.76,0.33627009]
[1741209848659,2.51683476,595.35,594.76,0.33627009]
[1741209848861,0.96801337,595.35,594.76,0.33627009]
[1741209849157,1.22425107,595.36,594.76,0.33627009]
[1741209849364,0.96801337,595.41,594.76,0.33627009]
[1741209849563,0.96801337,595.4,594.76,0.33627009]
[1741209849765,1.22425107,595.39,594.76,0.33627009]
[1741209850162,0.96801337,595.38,594.76,0.33627009]
[1741209850462,3.74108583,595.37,594.76,0.33627009]
[1741209850665,2.51683476,595.36,594.76,0.33627009]
[1741209850863,0.96801337,595.35,594.76,0.33627009]
[1741209851060,2.51683476,595.34,594.76,0.33627009]
[1741209851267,0.96801337,595.33,594.76,0.33627009]
[1741209851462,0.96801337,595.32,594.76,0.33627009]
[1741209851661,0.96801337,595.31,594.76,0.33627009]
[1741209851865,0.96801337,595.3,594.76,0.33627009]
[1741209852065,1.00159722,595.27,594.76,0.33627009]
[1741209852260,0.96801337,595.26,594.76,0.33627009]
[1741209852465,0.96801337,595.25,594.76,0.33627009]
[1741209852664,0.96801337,595.24,594.76,0.33627009]
[1741209852965,0.96801337,595.23,594.76,0.33627009]
[1741209853163,0.96801337,595.22,594.76,0.33627009]
[1741209853384,0.96801337,595.21,594.76,0.33627009]
[1741209853562,0.96801337,595.2,594.13,0.29263001]
[1741209853774,0.96801337,595.19,594.13,0.29263001]
[1741209853968,0.96801337,595.18,594.13,0.29263001]
[1741209854160,0.96801337,595.17,594.13,0.29263001]
[1741209854362,0.96801337,595.16,594.13,0.29263001]
[1741209854560,0.96801337,595.15,594.13,0.62925667]
[1741209854764,0.96801337,595.14,594.13,0.62925667]
[1741209854974,0.96801337,595.13,594.13,0.62925667]
[1741209855470,0.292662,595.12,594.13,0.62925667]
[1741209855666,1.51691307,595.12,594.13,0.62925667]
[1741209855873,2.19226444,595.12,594.13,0.33662666]
[1741209856072,0.96801337,595.11,594.13,0.33662666]
[1741209856571,1.47216727,595.14,594.13,0.33662666]
[1741209856768,3.02098866,595.14,594.13,0.33662666]
[1741209856966,6.20404145,595.14,594.13,0.33662666]
[1741209857168,3.31374792,595.13,594.13,0.62938592]
[1741209857469,3.18305279,595.12,594.13,0.62938592]
[1741209857664,6.20404145,595.12,594.13,0.62938592]
[1741209857872,3.02098866,595.11,594.13,0.62938592]
[1741209858071,5.69988755,595.11,594.13,0.62938592]
[1741209858272,2.51683476,595.1,594.13,0.62938592]
[1741209858672,1.22425107,595.09,594.13,0.62938592]
[1741209859675,0.29275926,595.13,594.13,0.62938592]
[1741209861880,3.00238647,595.24,594.13,0.33662666]
[1741209862080,0.30895743,595.23,594.13,0.33662666]
[1741209862275,0.6016699,595.23,594.13,0.62933913]
[1741209862477,0.30895743,595.22,594.13,0.62933913]
[1741209863175,3.3113439,595.22,594.13,0.62933913]
[1741209863473,0.30895743,595.21,594.13,0.62933913]
[1741209863678,6.49439669,595.21,594.13,0.62933913]
[1741209863877,3.3113439,595.2,594.13,0.62933913]
[1741209864082,0.30895743,595.19,594.13,0.62933913]
[1741209864281,3.49201022,595.19,594.13,0.62933913]
[1741209864482,3.3113439,595.18,594.13,0.62933913]
[1741209864682,0.30895743,595.17,594.13,0.62933913]
[1741209864981,3.49201022,595.17,594.13,0.62933913]
[1741209865182,3.30774755,595.16,594.13,0.62933913]
[1741209865377,0.30895743,595.15,594.13,0.62933913]
[1741209865576,3.49201022,595.15,594.13,0.62933913]
[1741209865776,3.3077733,595.14,594.13,0.62933913]
[1741209865983,3.18305279,595.13,594.13,0.62933913]
[1741209866184,5.67738255,595.13,594.13,0.62933913]
[1741209866384,2.49432976,595.12,594.13,0.62933913]
[1741209866684,3.71858083,595.12,594.13,0.62933913]
[1741209866881,2.49432976,595.11,594.13,0.62933913]
[1741209867082,2.18360867,595.11,594.13,0.62933913]
[1741209867379,0.9593576,595.1,594.13,0.62933913]
[1741209867884,2.99879208,595.18,594.13,0.33662666]
[1741209868083,3.49203005,595.17,594.13,0.33662666]
[1741209868279,3.30776934,595.16,594.13,0.33662666]
[1741209868480,0.30897726,595.15,594.13,0.33662666]
[1741209868680,3.18305279,595.15,594.13,0.33662666]
[1741209868988,2.49432976,595.14,594.13,0.33662666]
[1741209869280,2.78706193,595.14,594.13,0.62935883]
[1741209869486,1.22425107,595.13,594.13,0.62935883]
[1741209869677,2.75922323,595.13,594.13,0.62935883]
[1741209869878,0.9593576,595.12,594.13,0.62935883]
[1741209870484,0.29273217,595.14,594.13,0.62935883]
[1741209870984,3.18305279,595.25,594.13,0.62935883]
[1741209870985,2.99832237,595.24,594.13,0.33662666]
[1741209871188,0.3089455,595.23,594.13,0.33662666]
[1741209871378,3.49199829,595.23,594.13,0.33662666]
[1741209871583,3.30726787,595.22,594.13,0.33662666]
[1741209871885,3.49199829,595.21,594.13,0.33662666]
[1741209872084,3.30726787,595.2,594.13,0.33662666]
[1741209872280,0.3089455,595.19,594.13,0.6293182]
[1741209872479,3.49199829,595.19,594.13,0.6293182]
[1741209872684,2.49391757,595.18,594.13,0.6293182]
[1741209873185,1.22425107,595.17,594.13,0.6293182]
[1741209873793,0.29269154,595.21,594.13,0.6293182]
[1741209873982,0.30894201,595.2,594.13,0.33662666]
[1741209874181,0.30894286,595.19,594.13,0.33662666]
[1741209874384,2.99831074,595.27,594.13,0.33662666]
[1741209874688,3.49198829,595.26,594.13,0.33662666]
[1741209874883,3.30724624,595.25,594.13,0.33662666]
[1741209875088,0.30893511,595.24,594.13,0.33662666]
[1741209875285,3.29099859,595.25,594.13,0.62931451]
[1741209875783,3.18305279,595.24,594.13,0.62931451]
[1741209875987,0.9593576,595.23,594.13,0.62931451]
[1741209876490,0.96037588,595.23,594.13,0.62931451]
[1741209876692,0.29268785,595.25,594.13,0.62931451]
[1741209876988,1.21454474,595.23,594.13,0.33662666]
[1741209877691,0.96037588,595.43,594.13,0.33662666]
[1741209877884,0.30887649,595.42,594.13,0.33662666]
[1741209878090,1.50717844,595.42,594.13,0.62926036]
[1741209878289,0.30887649,595.41,594.13,0.62926036]
[1741209878696,1.26964967,595.41,594.13,0.62926036]
[1741209878889,0.30887649,595.4,594.13,0.62926036]
[1741209879089,1.52342123,595.4,594.13,0.62926036]
[1741209879293,0.30887649,595.39,594.13,0.62926036]
[1741209879889,0.30887649,595.39,594.13,0.33662666]
[1741209880095,3.31117515,595.39,594.13,0.33662666]
[1741209880296,0.30887649,595.38,594.13,0.33662666]
[1741209880491,3.15795347,595.38,594.13,0.33662666]
[1741209880695,6.16025213,595.38,594.13,0.33662666]
[1741209880890,6.16025213,595.37,594.13,0.33662666]
[1741209881090,3.00229866,595.36,594.13,0.62924806]
[1741209881295,3.15795347,595.35,594.13,0.62924806]
[1741209881492,5.65596375,595.35,594.13,0.62924806]
[1741209881694,3.00229656,595.34,594.13,0.62924806]
[1741209881896,3.15795347,595.33,594.13,0.62924806]
[1741209882092,4.11872665,595.33,594.13,0.62924806]
[1741209882297,2.49801028,595.32,594.13,0.62924806]
[1741209882799,1.21454474,595.31,594.13,0.62924806]
[1741209883099,1.21454474,595.31,594.13,0.33662666]
[1741209883605,0.96077318,595.43,594.13,0.33662666]
[1741209883797,1.26965519,595.42,594.13,0.33662666]
[1741209883999,1.21454474,595.42,594.13,0.33662666]
[1741209884198,0.60148989,595.41,594.13,0.62923576]
[1741209884398,0.30888079,595.4,594.13,0.62923576]
[1741209884594,1.52342553,595.4,594.13,0.62923576]
[1741209884798,0.30888079,595.39,594.13,0.62923576]
[1741209885300,1.52342553,595.39,594.13,0.62923576]
[1741209885502,0.30888079,595.38,594.13,0.62923576]
[1741209885801,0.30888046,595.37,594.13,0.62923576]
[1741209885993,3.00230686,595.38,594.13,0.33662666]
[1741209886197,0.30888046,595.37,594.13,0.33662666]
[1741209886399,0.29257097,595.36,594.13,0.62919763]
[1741209887001,3.29487783,595.36,594.13,0.62919763]
[1741209887200,4.41129762,595.36,594.13,0.62919763]
[1741209887397,3.00230686,595.35,594.13,0.62919763]
[1741209887603,2.49801028,595.35,594.13,0.62919763]
[1741209887903,1.21454474,595.34,594.13,0.62919763]
[1741209888201,2.75178184,595.34,594.13,0.62919763]
[1741209888402,0.96077318,595.33,594.13,0.62919763]
[1741209888603,1.21454474,595.34,594.13,0.62919763]
[1741209889003,1.21454474,595.34,594.13,0.33662666]
[1741209889206,1.087,595.33,594.13,0.33662666]
[1741209889503,1.37957466,595.33,594.13,0.62920132]
[1741209892008,1.087,595.33,594.13,0.33662666]
[1741209892203,0.29257589,595.32,594.13,0.62920255]
[1741209893707,2.79058617,595.32,594.13,0.62920255]
[1741209893905,1.21454474,595.31,594.13,0.62920255]
[1741209894105,3.71255502,595.31,594.13,0.62920255]
[1741209894606,3.15795347,595.3,594.13,0.62920255]
[1741209894803,2.49801028,595.29,594.13,0.62920255]
[1741209895006,0.96077318,595.29,594.13,0.33662666]
[1741209895203,1.21454474,595.28,594.13,0.33662666]
[1741209895404,2.17531792,595.28,594.13,0.33662666]
[1741209895606,0.96077318,595.27,594.13,0.33662666]
[1741209895806,0.96077318,595.29,594.13,0.33662666]
[1741209896312,0.96077318,595.29,594.13,0.62921485]
[1741209896313,0.29258819,595.26,594.13,0.62921485]
[1741209897912,2.50661352,595.29,594.13,0.33662666]
[1741209898511,1.21454474,595.3,594.13,0.33662666]
[1741209899115,1.21454474,595.3,594.13,0.62920747]
[1741209899412,0.29258081,595.29,594.13,0.62920747]
[1741209900210,0.29258081,595.29,594.18,1.25844178]
[1741209901006,0.96426467,595.31,594.18,1.25844178]
[1741209901209,2.17880941,595.32,594.18,1.25844178]
[1741209901415,0.96426467,595.32,594.22,1.25844178]
[1741209901616,4.00920189,595.46,594.22,1.25844178]
[1741209902216,0.29255252,595.32,594.22,1.25844178]
[1741209902413,0.29255252,595.32,594.24,0.33656435]
[1741209904020,3.01141743,595.39,594.24,0.33656435]
[1741209904312,3.15795347,595.38,594.24,0.33656435]
[1741209904517,3.01141743,595.37,594.24,0.33656435]
[1741209904914,3.15795347,595.36,594.26,1.25844178]
[1741209905108,0.29256236,595.32,594.27,0.33654736]
[1741209906413,3.45051583,595.32,594.27,0.33654736]
[1741209906616,2.50719644,595.31,594.27,0.33654736]
[1741209907315,1.21454474,595.3,594.27,0.33654736]
[1741209909216,1.087,595.33,594.27,0.33654736]
[1741209916325,0.29254514,595.32,594.27,0.33654736]
[1741209917729,1.21454474,595.31,594.27,0.33654736]
[1741209918828,0.29254514,595.32,594.27,0.33654736]
[1741209919026,4.22903323,595.37,594.27,0.33654736]
[1741209919226,1.21454474,595.35,594.27,0.33654736]
[1741209919534,0.29255375,595.31,594.27,0.33654736]
[1741209919832,0.824,595.3,594.27,0.33654736]
[1741209921326,1.78947911,595.3,594.27,0.33654736]
[1741209921531,3.33424569,595.3,594.27,0.33654736]
[1741209922032,3.15795347,595.29,594.27,0.33654736]
[1741209922232,0.96547911,595.28,594.27,0.33654736]
[1741209922830,0.824,595.3,594.27,0.33654736]
[1741209927144,0.824,595.3,594.39,1.25844178]
[1741209927344,0.824,595.3,594.41,0.33646809]
[1741209932350,1.21454474,595.29,594.41,0.33646809]
[1741209933352,1.21454474,595.28,594.41,0.33646809]
[1741209934350,1.21454474,595.29,594.41,0.33646809]
[1741209934755,1.21454474,595.28,594.41,0.33646809]
[1741209935349,1.21454474,595.27,594.41,0.33646809]
[1741209939458,1.21454474,595.28,594.41,0.33646809]
[1741209939855,1.21454474,595.29,594.41,0.33646809]
[1741209940259,1.21454474,595.28,594.41,0.33646809]
[1741209940660,0.824,595.3,594.41,0.33646809]
[1741209941357,3.33937488,595.3,594.41,0.33646809]
[1741209941553,3.15795347,595.29,594.41,0.33646809]
[1741209941860,0.96744506,595.28,594.41,0.33646809]
[1741209942554,0.824,595.3,594.41,0.33646809]
[1741209944260,0.824,595.3,594.43,1.25844178]
[1741209944461,0.824,595.3,594.45,0.33644545]
[1741209947066,0.824,595.3,594.46,1.25844178]
[1741209947362,0.824,595.3,594.47,0.33643413]
[1741209965967,1.22331549,595.49,594.47,0.33643413]
[1741209966674,0.96772923,595.5,594.47,0.33643413]
[1741209966975,0.96772923,595.6,594.47,0.33643413]
[1741209967174,0.96772923,595.59,594.47,0.33643413]
[1741209967372,3.73905251,595.6,594.47,0.33643413]
[1741209967569,1.22331549,595.58,594.47,0.33643413]
[1741209967770,1.22331549,595.57,594.53,1.25844178]
[1741209967972,1.22331549,595.57,594.55,0.33638886]
[1741209968172,3.73820403,595.57,594.55,0.33638886]
[1741209968374,3.73820403,595.56,594.55,0.33638886]
[1741209968574,2.51488854,595.55,594.55,0.33638886]
[1741209968875,0.96726482,595.55,594.55,0.33638886]
[1741209969078,1.256,595.54,594.55,0.33638886]
[1741209969677,2.22326482,595.54,594.55,0.33638886]
[1741209969875,0.96726482,595.53,594.55,0.33638886]
[1741209970073,2.22326482,595.54,594.55,0.33638886]
[1741209970277,1.2229295,595.53,594.57,1.25844178]
[1741209970474,1.2229295,595.53,594.59,0.33636623]
[1741209971580,1.256,595.54,594.59,0.33636623]
[1741209973380,1.256,595.54,594.59,0.33636623]
[1741209987093,1.256,595.54,594.61,1.25844178]
[1741209988192,1.256,595.54,594.63,0.3363436]
[1741209988699,1.256,595.54,594.63,1.59478538]
[1741209991299,1.256,595.54,594.65,1.25844178]
[1741209991500,1.256,595.54,594.67,0.33632098]
[1741209993802,1.256,595.54,594.68,1.25844178]
[1741209993997,1.256,595.54,594.7,0.33630401]
[1741209995301,1.256,595.54,594.7,1.59474579]
[1741209999698,1.256,595.54,594.72,1.25844178]
[1741209999901,1.256,595.54,594.74,0.3362814]